bitfinex-derivatives/quotes_SOLF0:USTF0_20240923
["timestamp","ask_amount","ask_price","bid_price","bid_amount"]
[1727110913216,3.4929,143.14,143.11,3.4935]
[1727110914313,3.4928,143.15,143.08,15.1]
[1727110914513,3.4928,143.15,143.09,1.3767]
[1727110914913,3.4928,143.15,143.12,3.4933]
[1727110915708,3.52227169,143.17,143.11,15.1]
[1727110915917,2.8093,143.18,143.11,15.1]
[1727110916221,3.4924,143.17,143.13,3.4931]
[1727110916421,4.77505313,143.18,143.13,3.4931]
[1727110916620,1.34,143.18,143.13,3.4931]
[1727110916922,3.4926,143.15,143.12,3.4932]
[1727110917218,3.56508668,143.16,143.09,2.7525]
[1727110917421,15.1,143.17,143.09,2.7525]
[1727110917919,18.5883971,143.17,143.09,2.7525]
[1727110918215,18.5883971,143.17,143.12,3.4933]
[1727110918216,3.4927,143.15,143.12,3.4933]
[1727110918808,7.0535866,143.16,143.13,3.4931]
[1727110919115,3.5610866,143.16,143.09,2.7525]
[1727110919420,15.1,143.2,143.14,3.4927]
[1727110920119,15.1,143.2,143.15,3.4925]
[1727110920319,15.1,143.2,143.11,15.1]
[1727110920521,15.1,143.18,143.11,15.1]
[1727110920817,18.66772651,143.18,143.11,15.1]
[1727110921013,3.4926,143.15,143.09,17.8525]
[1727110921621,3.4926,143.15,143.12,3.4932]
[1727110922012,18.66772651,143.18,143.12,3.4932]
[1727110922212,15.1,143.17,143.12,3.4932]
[1727110922414,15.1,143.17,143.11,3.4935]
[1727110922612,3.4928,143.15,143.09,2.7525]
[1727110922823,3.4928,143.15,143.12,3.4933]
[1727110923217,3.4928,143.15,143.09,17.8525]
[1727110923524,15.1,143.2,143.11,15.1]
[1727110923821,6.92519052,143.19,143.17,3.4921]
[1727110924013,3.43329052,143.19,143.15,15.1]
[1727110924325,3.43329052,143.19,143.16,1.4107]
[1727110924624,3.4913,143.21,143.18,3.4919]
[1727110925023,3.4916,143.2,143.17,3.4921]
[1727110925621,3.4913,143.21,143.18,3.4917]
[1727110926016,15.1,143.23,143.16,1.4107]
[1727110926217,102.56243214,143.27,143.21,3.4911]
[1727110926425,1.03405998,143.26,143.21,3.4911]
[1727110926729,3.4911,143.22,143.17,1.4443]
[1727110926920,15.1,143.23,143.17,1.4443]
[1727110927119,15.1,143.23,143.16,1.4107]
[1727110927319,15.1,143.23,143.17,3.4919]
[1727110927925,15.1,143.23,143.16,1.4107]
[1727110928424,3.4919,143.18,143.16,1.4107]
[1727110928936,3.4919,143.18,143.14,15.1]
[1727110928937,3.4923,143.17,143.14,3.4928]
[1727110929413,3.49053332,143.17,143.13,1.448]
[1727110929617,2.8538,143.28,143.12,4.8966]
[1727110929618,15.1,143.18,143.12,4.8966]
[1727110929821,15.1,143.18,143.12,3.4931]
[1727110930128,15.1,143.18,143.11,3.4935]
[1727110930815,15.1,143.16,143.1,3.4938]
[1727110931620,3.493,143.14,143.11,3.4936]
[1727110932221,3.53103229,143.17,143.1,15.1]
[1727110932423,15.1,143.19,143.12,15.1]
[1727110932724,3.4921,143.18,143.14,3.4927]
[1727110933030,6.91060335,143.18,143.12,15.1]
[1727110933327,3.4921,143.18,143.12,15.1]
[1727110934119,3.56353288,143.19,143.12,15.1]
[1727110934120,3.4918,143.19,143.12,15.1]
[1727110934326,3.48965659,143.21,143.18,3.4918]
[1727110934526,15.1,143.23,143.18,3.4918]
[1727110934726,3.4913,143.21,143.18,3.4918]
[1727110934928,3.4913,143.21,143.15,15.1]
[1727110934929,3.55499811,143.22,143.17,3.492]
[1727110935127,3.4913,143.21,143.17,3.492]
[1727110935927,3.4913,143.21,143.18,3.4918]
[1727110936534,3.4914,143.2,143.17,3.492]
[1727110937531,3.4913,143.21,143.17,3.492]
[1727110937836,3.4913,143.21,143.18,3.4918]
[1727110938731,3.491,143.22,143.19,3.4916]
[1727110939132,3.4906,143.24,143.2,3.4912]
[1727110939338,17.8005,143.27,143.2,3.4912]
[1727110939638,3.4909,143.23,143.2,3.4912]
[1727110939934,17.8005,143.27,143.17,15.1]
[1727110940139,15.1,143.25,143.15,16.4497]
[1727110940333,15.1,143.25,143.18,3.4919]
[1727110940825,15.1,143.25,143.15,1.3497]
[1727110941031,15.1,143.23,143.15,1.3497]
[1727110941338,3.4916,143.2,143.15,1.3497]
[1727110942136,3.4916,143.2,143.17,3.492]
[1727110943838,3.4913,143.21,143.18,3.4918]
[1727110945038,3.4914,143.2,143.18,3.4918]
[1727110945239,15.1,143.25,143.18,3.4918]
[1727110945543,3.4908,143.23,143.17,15.1]
[1727110946242,3.4908,143.23,143.2,3.4913]
[1727110947539,3.4905,143.24,143.21,3.4911]
[1727110947741,16.4695,143.27,143.17,15.1]
[1727110947941,3.4904,143.24,143.2,3.4912]
[1727110948133,3.4904,143.24,143.17,15.1]
[1727110948839,3.4908,143.23,143.17,15.1]
[1727110949539,3.4908,143.23,143.2,3.4912]
[1727110950244,3.4908,143.23,143.21,3.4911]
[1727110953932,3.4908,143.23,143.2,3.4913]
[1727110955228,3.4908,143.23,143.17,15.1]
[1727110956343,3.4908,143.23,143.2,3.4913]
[1727110957247,3.4911,143.22,143.19,3.4916]
[1727110957548,16.4695,143.27,143.19,3.4916]
[1727110957737,1.03271002,143.26,143.19,3.4916]
[1727110958041,3.4911,143.22,143.19,3.4916]
[1727110958444,3.4912,143.21,143.18,3.4918]
[1727110959246,3.45232675,143.22,143.18,3.4918]
[1727110959445,15.1,143.25,143.15,16.4497]
[1727110960642,3.4913,143.21,143.18,3.4917]
[1727110962444,3.4919,143.18,143.15,4.8422]
[1727110962654,18.56014113,143.22,143.14,1.3778]
[1727110962843,15.1,143.2,143.14,1.3778]
[1727110963334,15.1,143.22,143.14,1.3778]
[1727110963540,18.63388836,143.22,143.14,1.3778]
[1727110963740,3.4916,143.2,143.16,3.4922]
[1727110964346,3.4917,143.19,143.16,3.4922]
[1727110964551,18.63388836,143.22,143.14,4.8705]
[1727110965047,3.492,143.18,143.14,4.8705]
[1727110965251,18.63388836,143.22,143.14,1.3778]
[1727110965549,18.63388836,143.22,143.14,16.4778]
[1727110965751,3.4916,143.19,143.14,16.4778]
[1727110966142,3.4916,143.19,143.16,3.4922]
[1727110967642,3.492,143.18,143.14,1.3778]
[1727110967948,15.1,143.2,143.1,15.1]
[1727110968145,15.1,143.2,143.1,16.4695]
[1727110968344,3.4921,143.17,143.13,3.4929]
[1727110968744,15.1,143.2,143.12,15.1]
[1727110968943,1.4353,143.21,143.12,15.1]
[1727110969249,1.4353,143.21,143.14,15.1]
[1727110969750,3.4917,143.19,143.16,3.4922]
[1727110970549,3.4915,143.2,143.17,3.4921]
[1727110970949,1.3349,143.25,143.17,15.1]
[1727110971157,3.4905,143.24,143.19,15.1]
[1727110971853,3.4905,143.24,143.2,3.4913]
[1727110976660,3.4907,143.23,143.2,3.4913]
[1727110977153,3.4906,143.24,143.2,3.4913]
[1727110977354,15.1,143.28,143.2,3.4913]
[1727110977558,3.4906,143.24,143.2,3.4913]
[1727110977757,15.1,143.28,143.2,3.4913]
[1727110977959,1.03172657,143.27,143.2,3.4913]
[1727110978457,3.4908,143.23,143.2,3.4913]
[1727110978649,15.1,143.28,143.18,15.1]
[1727110978856,3.4908,143.23,143.18,15.1]
[1727110979157,3.4908,143.23,143.19,3.4915]
[1727110979582,3.491,143.22,143.19,3.4915]
[1727110982259,3.491,143.22,143.2,9.66]
[1727110983256,4.1029,143.29,143.21,9.66]
[1727110983562,2.6839,143.29,143.24,9.66]
[1727110983764,2.6839,143.29,143.26,9.66]
[1727110984367,2.6839,143.29,143.23,3.4905]
[1727110984368,3.49,143.26,143.23,3.4905]
[1727110985057,3.49,143.26,143.24,3.4904]
[1727110985560,3.49,143.26,143.23,3.4905]
[1727110985865,15.08,143.28,143.2,15.08]
[1727110986062,15.08,143.28,143.22,3.4909]
[1727110986362,3.4903,143.25,143.22,3.4909]
[1727110986562,15.08,143.28,143.21,3.491]
[1727110987662,3.4905,143.24,143.21,3.491]
[1727110989269,3.4908,143.23,143.2,3.4913]
[1727110989454,15.08,143.26,143.18,15.08]
[1727110989659,15.08,143.26,143.17,15.08]
[1727110989859,15.08,143.24,143.18,3.4918]
[1727110990261,3.4913,143.21,143.18,3.4918]
[1727110990465,3.55221795,143.21,143.17,3.492]
[1727110990771,15.08,143.24,143.17,3.492]
[1727110990967,15.08,143.24,143.16,6.1796]
[1727110991354,15.08,143.24,143.16,2.6874]
[1727110991554,15.08,143.24,143.15,16.4495]
[1727110991555,3.4915,143.2,143.15,16.4495]
[1727110992166,3.4915,143.2,143.17,3.492]
[1727110992567,6.99426891,143.21,143.17,3.492]
[1727110992763,3.4913,143.21,143.18,3.4918]
[1727110993370,6.89858919,143.21,143.18,3.4918]
[1727110993575,3.4914,143.2,143.17,3.492]
[1727110996068,3.4917,143.19,143.16,3.4922]
[1727110997965,3.4917,143.19,143.15,16.4495]
[1727110998166,15.08,143.26,143.17,15.08]
[1727110998684,3.4911,143.22,143.19,3.4915]
[1727111002976,3.4911,143.22,143.2,3.4914]
[1727111003870,3.4911,143.22,143.19,3.4915]
[1727111004274,3.4911,143.22,143.19,13.1515]
[1727111006177,2.6839,143.29,143.21,9.66]
[1727111006178,12.3439,143.29,143.21,9.66]
[1727111006471,81.23758441,143.31,143.26,9.66]
[1727111006675,3.4896,143.28,143.26,9.66]
[1727111008372,3.4896,143.28,143.25,3.4901]
[1727111010385,3.4892,143.29,143.26,3.4898]
[1727111010579,71.57758441,143.31,143.25,15.08]
[1727111010773,83.82,143.41,143.25,15.08]
[1727111010774,6.9733,143.4,143.27,15.08]
[1727111010974,3.4882,143.34,143.3,3.489]
[1727111011173,3.4882,143.34,143.29,15.08]
[1727111011576,3.4882,143.33,143.3,3.4888]
[1727111011779,15.08,143.35,143.28,1.3622]
[1727111012075,3.4886,143.32,143.28,4.8515]
[1727111014978,3.4887,143.31,143.28,4.8515]
[1727111016882,15.08,143.37,143.29,15.08]
[1727111017084,14.61185701,143.36,143.29,15.08]
[1727111017279,1.03356568,143.35,143.32,3.4885]
[1727111017586,6.43767193,143.39,143.31,15.08]
[1727111017787,1.03384889,143.38,143.31,15.08]
[1727111017985,3.4876,143.36,143.31,15.08]
[1727111018284,3.57397193,143.39,143.33,15.08]
[1727111018586,3.4869,143.39,143.35,3.4877]
[1727111020272,3.4869,143.39,143.35,18.5677]
[1727111024482,3.42081384,143.4,143.34,1.3941]
[1727111024483,3.4866,143.4,143.37,15.08]
[1727111024674,2.8343,143.44,143.37,15.08]
[1727111024880,2.8343,143.44,143.4,3.4864]
[1727111024881,3.4858,143.44,143.4,3.4864]
[1727111025282,6.20774184,143.48,143.41,3.4862]
[1727111025582,3.4855,143.45,143.41,3.4862]
[1727111025782,2.7755,143.48,143.4,18.5664]
[1727111025983,1.03454466,143.47,143.4,18.5664]
[1727111026179,16.11454466,143.47,143.36,15.08]
[1727111026384,1.03454466,143.46,143.38,3.4868]
[1727111026588,3.486,143.43,143.36,15.08]
[1727111027391,3.486,143.43,143.38,15.08]
[1727111027795,3.486,143.43,143.39,3.4866]
[1727111028090,15.08,143.47,143.39,3.4866]
[1727111028496,15.08,143.47,143.38,15.08]
[1727111028497,3.4863,143.42,143.38,18.5669]
[1727111028690,15.08,143.45,143.37,15.08]
[1727111029497,15.08,143.45,143.38,3.4869]
[1727111029688,3.4863,143.42,143.38,3.4869]
[1727111030290,3.4866,143.4,143.37,18.5671]
[1727111030496,15.08,143.45,143.37,18.5671]
[1727111030696,3.4864,143.41,143.37,18.5671]
[1727111030894,3.56045614,143.41,143.37,18.5671]
[1727111031107,15.08,143.45,143.37,18.5671]
[1727111031493,1.03479003,143.44,143.37,18.5671]
[1727111031792,3.4865,143.4,143.37,18.5671]
[1727111031995,3.50603412,143.41,143.35,15.08]
[1727111032196,15.08,143.43,143.35,15.08]
[1727111032498,3.4866,143.4,143.36,3.4874]
[1727111032700,6.98670351,143.4,143.36,3.4874]
[1727111032893,3.4866,143.4,143.36,3.4874]
[1727111033296,3.4866,143.4,143.37,15.08]
[1727111033501,3.4866,143.4,143.37,18.5673]
[1727111033502,6.91414082,143.4,143.37,18.5673]
[1727111033704,6.91414082,143.4,143.37,15.08]
[1727111035196,3.4868,143.39,143.37,15.08]
[1727111035393,15.08,143.45,143.37,15.08]
[1727111035600,1.03446312,143.44,143.37,15.08]
[1727111035904,3.4866,143.4,143.37,15.08]
[1727111036199,15.08,143.47,143.37,15.08]
[1727111036395,1.03457586,143.46,143.37,15.08]
[1727111037500,3.4864,143.41,143.38,3.487]
[1727111037694,3.4864,143.41,143.37,15.08]
[1727111038504,3.4864,143.41,143.37,18.5671]
[1727111039003,3.4866,143.4,143.37,18.5671]
[1727111039212,15.08,143.45,143.37,15.08]
[1727111040300,2.7755,143.48,143.39,15.08]
[1727111040497,3.4857,143.44,143.41,15.08]
[1727111042306,3.55531498,143.49,143.43,15.08]
[1727111042504,17.8107,143.52,143.43,15.08]
[1727111042705,17.8107,143.52,143.43,18.5657]
[1727111043200,17.8107,143.52,143.34,23.4498]
[1727111043201,3.4838,143.52,143.48,3.4844]
[1727111043405,3.53041718,143.52,143.47,15.08]
[1727111043720,19.2475,143.57,143.41,15.08]
[1727111043721,3.54437002,143.55,143.49,15.08]
[1727111044015,2.8343,143.57,143.5,15.08]
[1727111044203,6.39073868,143.57,143.49,15.08]
[1727111044398,3.4836,143.53,143.49,15.08]
[1727111044710,3.44279439,143.53,143.49,15.08]
[1727111044910,15.08,143.55,143.47,15.08]
[1727111045098,15.08,143.54,143.45,15.08]
[1727111045299,3.4841,143.5,143.45,15.08]
[1727111046110,3.4841,143.5,143.45,18.5651]
[1727111046612,3.4841,143.5,143.46,3.485]
[1727111047199,3.4839,143.51,143.47,3.4848]
[1727111047401,2.8343,143.57,143.5,15.08]
[1727111047613,3.53915347,143.56,143.52,15.08]
[1727111047914,3.48267205,143.56,143.52,15.08]
[1727111048108,19.227,143.62,143.52,15.08]
[1727111048310,1.03658815,143.61,143.52,15.08]
[1727111048908,15.08,143.6,143.5,15.08]
[1727111049415,3.4833,143.54,143.5,18.564]
[1727111049914,3.42619064,143.55,143.49,19.2295]
[1727111050115,15.08,143.56,143.49,1.3234]
[1727111050411,3.4839,143.51,143.47,18.5647]
[1727111050913,3.4841,143.5,143.47,15.08]
[1727111051411,3.4839,143.51,143.47,15.08]
[1727111051601,3.4839,143.51,143.47,18.5648]
[1727111053415,17.7901,143.55,143.47,15.08]
[1727111054116,3.4841,143.51,143.47,18.5648]
[1727111054616,3.4841,143.5,143.47,18.5648]
[1727111056107,3.484,143.51,143.48,3.4845]
[1727111056318,3.484,143.51,143.47,15.08]
[1727111056319,2.7101,143.55,143.47,15.08]
[1727111056814,3.484,143.51,143.47,18.5646]
[1727111057817,3.4842,143.5,143.47,18.5646]
[1727111058909,17.7901,143.55,143.47,15.08]
[1727111059216,3.484,143.51,143.48,3.4846]
[1727111059415,17.7901,143.55,143.47,15.08]
[1727111059616,3.4841,143.5,143.47,15.08]
[1727111059827,17.7901,143.55,143.47,15.08]
[1727111060006,3.4839,143.51,143.47,15.08]
[1727111060917,3.4839,143.51,143.48,3.4845]
[1727111062114,2.7101,143.55,143.47,15.08]
[1727111062310,3.5063803,143.56,143.5,3.4839]
[1727111062510,15.08,143.57,143.5,3.4839]
[1727111062721,1.03680158,143.56,143.5,3.4839]
[1727111062924,3.42038028,143.56,143.5,3.4839]
[1727111063120,22.0441,143.59,143.5,3.4839]
[1727111063323,1.03685798,143.58,143.5,3.4839]
[1727111064117,3.4835,143.53,143.5,3.4839]
[1727111064817,3.4837,143.52,143.49,15.08]
[1727111065023,18.53395283,143.54,143.45,15.08]
[1727111065215,15.08,143.54,143.45,15.08]
[1727111065415,3.4842,143.5,143.45,15.08]
[1727111065922,3.4842,143.5,143.46,3.4849]
[1727111066124,3.4844,143.49,143.46,3.4849]
[1727111068625,3.4844,143.49,143.45,15.08]
[1727111069121,3.4844,143.49,143.47,3.4848]
[1727111069328,3.4843,143.5,143.47,15.08]
[1727111069824,3.4844,143.49,143.47,18.5647]
[1727111070021,3.4844,143.49,143.47,3.4847]
[1727111070234,15.08,143.52,143.43,15.08]
[1727111070427,3.4853,143.45,143.43,18.5657]
[1727111070725,15.08,143.52,143.43,15.08]
[1727111070930,3.485,143.47,143.44,3.4853]
[1727111071727,3.4851,143.46,143.43,18.5658]
[1727111071927,15.08,143.5,143.42,4.1389]
[1727111072426,3.4855,143.45,143.42,7.6248]
[1727111073125,3.51589736,143.47,143.42,4.1389]
[1727111073326,15.08,143.48,143.42,4.1389]
[1727111073922,15.08,143.48,143.42,1.3514]
[1727111076026,3.4856,143.44,143.42,1.3514]
[1727111076820,3.57267401,143.45,143.35,2.7869]
[1727111077135,15.08,143.45,143.36,16.517]
[1727111077324,3.4869,143.39,143.36,16.517]
[1727111077725,3.4869,143.39,143.36,20.0043]
[1727111078030,3.4869,143.39,143.36,16.517]
[1727111078330,3.4866,143.4,143.37,3.4871]
[1727111079624,3.49110568,143.45,143.38,15.08]
[1727111079827,2.7893,143.47,143.4,15.08]
[1727111080025,15.08,143.5,143.42,15.08]
[1727111080328,1.03831991,143.49,143.42,15.08]
[1727111080724,1.03831991,143.49,143.42,18.5659]
[1727111080928,3.4853,143.46,143.42,18.5659]
[1727111081132,3.51356753,143.46,143.4,15.08]
[1727111081321,15.08,143.5,143.4,15.08]
[1727111081527,1.03770682,143.49,143.4,15.08]
[1727111082435,1.03770682,143.49,143.41,3.4863]
[1727111083028,3.4855,143.45,143.41,3.4863]
[1727111083227,3.52120197,143.45,143.41,3.4863]
[1727111083426,15.08,143.49,143.41,3.4863]
[1727111083624,3.4855,143.45,143.41,3.4863]
[1727111083829,6.92928226,143.45,143.41,3.4863]
[1727111084024,3.4855,143.45,143.42,3.486]
[1727111084231,17.8242,143.51,143.41,15.08]
[1727111084532,17.8242,143.51,143.42,1.4419]
[1727111084725,3.4849,143.47,143.42,1.4419]
[1727111084927,3.52085323,143.47,143.42,1.4419]
[1727111085126,17.8242,143.51,143.43,3.4857]
[1727111085329,1.0376723,143.5,143.43,3.4857]
[1727111085734,3.485,143.47,143.43,3.4857]
[1727111085928,6.96121484,143.47,143.43,3.4857]
[1727111086239,3.47621484,143.47,143.43,3.4857]
[1727111086442,17.8242,143.51,143.43,3.4857]
[1727111086638,1.03776357,143.5,143.43,3.4857]
[1727111086837,17.8242,143.51,143.43,3.4857]
[1727111087538,1.03778333,143.5,143.43,3.4857]
[1727111089042,3.4851,143.46,143.43,3.4857]
[1727111090048,3.52862806,143.47,143.42,1.4419]
[1727111090340,15.08,143.49,143.42,1.4419]
[1727111090734,3.4855,143.45,143.42,1.4419]
[1727111090939,6.90103452,143.45,143.42,1.4419]
[1727111091542,3.4856,143.44,143.42,1.4419]
[1727111093544,3.4852,143.46,143.43,3.4858]
[1727111094634,3.4852,143.46,143.42,20.0078]
[1727111094836,3.43855119,143.47,143.42,1.4419]
[1727111095036,15.08,143.49,143.42,1.4419]
[1727111095244,1.03712895,143.48,143.42,1.4419]
[1727111095648,1.03712895,143.48,143.4,15.08]
[1727111096046,3.486,143.43,143.38,15.08]
[1727111096250,3.49738304,143.43,143.38,15.08]
[1727111096447,15.08,143.47,143.38,15.08]
[1727111096649,15.08,143.47,143.39,3.4866]
[1727111097051,18.55296972,143.47,143.39,3.4866]
[1727111097247,3.486,143.43,143.39,3.4866]
[1727111098051,3.4861,143.42,143.39,3.4866]
[1727111099141,3.4861,143.42,143.4,3.4865]
[1727111099946,3.4861,143.42,143.39,3.4866]
[1727111100349,3.4861,143.42,143.4,9.64]
[1727111100751,9.64,143.42,143.36,1.3414]
[1727111100953,9.64,143.42,143.37,9.64]
[1727111101246,9.64,143.39,143.36,1.3414]
[1727111101448,3.4871,143.38,143.36,4.8288]
[1727111101648,9.64,143.41,143.36,10.9814]
[1727111101849,9.64,143.42,143.37,9.64]
[1727111102352,3.4867,143.4,143.37,9.64]
[1727111103252,1.3645,143.45,143.39,9.64]
[1727111103460,1.3323,143.46,143.4,9.64]
[1727111103754,10.9723,143.46,143.42,9.64]
[1727111104057,3.4856,143.44,143.42,9.64]
[1727111104254,3.4856,143.44,143.41,3.4861]
[1727111104562,3.4863,143.42,143.38,3.4869]
[1727111104746,3.4863,143.42,143.37,15.07]
[1727111105252,3.4863,143.42,143.39,3.4866]
[1727111105649,3.4859,143.43,143.37,15.07]
[1727111106953,3.4861,143.42,143.39,3.4866]
[1727111107154,15.07,143.44,143.36,1.3414]
[1727111108154,3.4868,143.4,143.36,1.3414]
[1727111108654,3.4868,143.4,143.37,3.4871]
[1727111108857,3.4868,143.39,143.37,3.4871]
[1727111109062,15.07,143.42,143.36,1.3414]
[1727111109556,3.4871,143.38,143.36,1.3414]
[1727111110261,6.90164361,143.39,143.36,4.8288]
[1727111110456,3.4869,143.39,143.36,4.8288]
[1727111110863,3.487,143.38,143.36,1.3414]
[1727111111059,15.07,143.4,143.31,15.07]
[1727111111561,15.07,143.4,143.34,3.4879]
[1727111112151,3.4871,143.38,143.33,15.07]
[1727111112857,3.4871,143.38,143.35,3.4875]
[1727111113162,3.5163964,143.39,143.31,15.07]
[1727111113373,15.07,143.38,143.3,2.6901]
[1727111113556,15.07,143.38,143.3,1.3307]
[1727111113557,15.07,143.35,143.3,1.3307]
[1727111114067,15.07,143.35,143.28,1.3496]
[1727111114272,18.56371898,143.35,143.29,3.4892]
[1727111114466,18.56371898,143.35,143.28,1.3496]
[1727111114665,3.4885,143.32,143.28,1.3496]
[1727111115467,3.4885,143.32,143.28,4.8389]
[1727111115770,3.4885,143.32,143.23,1.3841]
[1727111115771,15.07,143.33,143.24,15.07]
[1727111115957,3.49371898,143.35,143.23,1.3841]
[1727111115958,15.07,143.31,143.23,1.3841]
[1727111116158,15.07,143.31,143.25,3.49]
[1727111116473,3.4893,143.29,143.23,1.3841]
[1727111116977,2.7673,143.34,143.26,15.07]
[1727111117271,2.7673,143.34,143.28,3.4892]
[1727111117462,3.4889,143.31,143.28,3.4892]
[1727111118174,3.4885,143.32,143.26,15.07]
[1727111118768,3.4887,143.31,143.28,3.4893]
[1727111119369,3.4886,143.32,143.28,3.4893]
[1727111121670,2.7673,143.34,143.27,3.4896]
[1727111121868,15.07,143.33,143.27,3.4896]
[1727111123069,3.4889,143.31,143.27,3.4896]
[1727111124166,15.07,143.31,143.23,1.3841]
[1727111124566,3.4894,143.29,143.26,3.4899]
[1727111126773,15.07,143.29,143.23,1.3841]
[1727111127275,3.4898,143.27,143.24,3.4902]
[1727111127980,15.07,143.31,143.23,1.3841]
[1727111128570,15.07,143.33,143.23,16.4541]
[1727111128875,2.7673,143.34,143.25,15.07]
[1727111129074,3.4886,143.32,143.27,15.07]
[1727111129276,2.7673,143.34,143.27,15.07]
[1727111129675,3.4887,143.32,143.28,3.4893]
[1727111129881,15.07,143.33,143.25,15.07]
[1727111130775,3.4891,143.3,143.27,3.4897]
[1727111134280,15.07,143.33,143.24,1.4093]
[1727111134981,15.07,143.31,143.24,1.4093]
[1727111135184,15.07,143.29,143.23,1.3841]
[1727111135484,15.07,143.29,143.22,3.4908]
[1727111136084,3.4901,143.26,143.23,3.4906]
[1727111136382,15.07,143.3,143.21,1.4473]
[1727111136586,3.4897,143.27,143.24,3.4903]
[1727111138189,3.4897,143.27,143.21,1.4473]
[1727111138190,3.4897,143.27,143.23,3.4906]
[1727111138486,6.93746246,143.27,143.23,3.4906]
[1727111138685,3.4899,143.26,143.23,3.4906]
[1727111139674,7.04091852,143.27,143.23,3.4906]
[1727111139885,3.4898,143.27,143.23,3.4906]
[1727111140089,6.96270312,143.27,143.23,3.4906]
[1727111140286,16.61270312,143.27,143.23,3.4906]
[1727111141285,16.61270312,143.27,143.24,3.4904]
[1727111142487,16.61270312,143.27,143.23,3.4906]
[1727111142886,3.4899,143.26,143.23,3.4906]
[1727111144993,9.65,143.27,143.22,9.65]
[1727111145493,3.41273405,143.27,143.24,13.1402]
[1727111145689,13.1396,143.28,143.24,13.1402]
[1727111146097,3.46092369,143.27,143.24,9.65]
[1727111146492,3.49,143.26,143.23,3.4906]
[1727111147288,16.70932497,143.27,143.23,3.4906]
[1727111147495,9.65,143.29,143.23,9.65]
[1727111147690,9.65,143.29,143.24,9.65]
[1727111147899,9.65,143.29,143.26,3.4898]
[1727111149403,13.1393,143.29,143.26,3.4898]
[1727111151100,3.4895,143.28,143.26,3.4898]
[1727111151305,3.4895,143.28,143.25,3.4901]
[1727111153106,13.1393,143.29,143.26,3.4899]
[1727111155400,13.1388,143.31,143.28,3.4894]
[1727111155601,9.65,143.31,143.27,9.65]
[1727111155804,9.65,143.3,143.25,9.65]
[1727111156002,3.4891,143.3,143.27,13.1395]
[1727111156506,3.4893,143.29,143.27,9.65]
[1727111156700,9.65,143.31,143.26,9.65]
[1727111157708,3.4891,143.3,143.27,3.4895]
[1727111157906,13.1391,143.3,143.27,3.4895]
[1727111158101,9.65,143.29,143.24,9.65]
[1727111158707,9.65,143.29,143.25,9.65]
[1727111159108,9.65,143.3,143.26,9.65]
[1727111159409,13.1389,143.31,143.26,9.65]
[1727111159607,2.7673,143.34,143.29,9.65]
[1727111159797,12.4173,143.34,143.29,9.65]
[1727111160199,3.4884,143.33,143.3,3.489]
[1727111160401,9.65,143.34,143.3,3.489]
[1727111160607,13.14371898,143.35,143.3,9.65]
[1727111160813,13.14371898,143.35,143.31,3.4886]
[1727111161111,3.49371898,143.35,143.33,9.65]